Cogmind - Beta 13 @@@ ROGUE MODE // 2024.04.28 @ 19:19:49 Player: kirkalish Result: Destroyed by S-10 Pest via exploding Fusion Modulator Performance ------------- Evolutions (1) 500 Regions Visited (2) 400 Robots Destroyed (30) 150 Value Destroyed (815) 815 Prototype IDs (3) 60 Alien Tech Used (0) 0 Bonus (0) 0 TOTAL SCORE: 1925 Bonus ------- None Cogmind --------- Core Integrity 0/400 Matter 300/300 Energy 88/100 System Corruption 0% Temperature Cool (78) Movement Core (50) Location -9/Materials Parts ------- > --- POWER (1) -------- (None) > --- PROPULSION (4) --- (None) > --- UTILITY (2) ------ (None) > --- WEAPON (2) ------- Beam Cannon > --- INVENTORY (5) ---- Ion Engine Aluminum Leg Visual Processing Unit Melee Analysis Suite High-powered Tractor Beam Peak State ------------ > --- POWER ------------ Light Nuclear Core > --- PROPULSION ------- Aluminum Leg Aluminum Leg Aluminum Leg Aluminum Leg > --- UTILITY ---------- Improved Heat Sink Large Storage Unit > --- WEAPON ----------- Spread Laser Spread Laser > --- INVENTORY -------- Ion Engine Ion Engine Aluminum Leg Aluminum Leg Aluminum Leg Heat Sink Visual Processing Unit Improved Targeting Computer Melee Analysis Suite Hardened Light Armor Plating High-powered Tractor Beam Beam Cannon Heavy Assault Rifle [Rating: 17] Favorites ----------- Power Ion Engine Engine Ion Engine Power Core Light Nuclear Core Propulsion Aluminum Leg Treads Light Treads Leg Aluminum Leg Wheel Compact Wheel Flight Unit Flight Unit Utility Hardened Light Armor Plating Device Improved Heat Sink Storage Large Storage Unit Protection Hardened Light Armor Plating Weapon Heavy Assault Rifle Energy Gun Spread Laser Energy Cannon Beam Cannon Ballistic Gun Heavy Assault Rifle Launcher Grenade Launcher Special Melee Weapon Datajack Build | -11 -10 -9 ------- Run | Yrd Mat Mat Slots Evolved 2 | . . 2 Power . | . . . Propulsion 2 | . . 2 Utility . | . . . Weapon . | . . . Parts Attached 41 | 4 25 12 Power 9 | 1 6 2 Engine 5 | 1 3 1 Core 4 | . 3 1 Reactor . | . . . Propulsion 13 | 2 7 4 Treads 2 | 2 . . Leg 8 | . 4 4 Wheel 2 | . 2 . Hover . | . . . Flight 1 | . 1 . Utility 8 | . 5 3 Device 4 | . 1 3 Storage 2 | . 2 . Processor . | . . . Hackware . | . . . Protection 2 | . 2 . Artifact . | . . . Weapon 11 | 1 7 3 Energy Gun 3 | . 1 2 Energy Cannon 3 | . 2 1 Ballistic Gun 3 | 1 2 . Ballistic Cannon . | . . . Launcher 1 | . 1 . Special Weapon . | . . . Impact Weapon . | . . . Slashing Weapon . | . . . Piercing Weapon . | . . . Special Melee Weapon 1 | . 1 . Unidentified Prototypes . | . . . Parts Lost 20 | . 7 13 Power 3 | . 1 2 Propulsion 9 | . 4 5 Utility 3 | . . 3 Weapon 5 | . 2 3 Highest Loss Streak 8 | . 3 8 To Critical Strikes . | . . . Average Slot Usage (%) 84 | . 85 83 Engine 8 | . 9 6 Core 4 | . 4 3 Treads 4 | . 6 . Leg 15 | . 9 31 Wheel 2 | . 3 . Flight 2 | . 2 . Device 2 | . 1 6 Storage 13 | . 14 10 Protection 7 | . 8 3 Energy Gun 4 | . 1 13 Energy Cannon 3 | . 1 7 Ballistic Gun 9 | . 13 . Launcher 4 | . 5 . Special Melee Weapon 1 | . 1 . Naked Turns . | . . . Heaviest Build 36 | 4 36 36 Greatest Support 40 | 40 40 40 Greatest Overweight (x) 11 | . 11 10 Average Overweight (x) . | . 1 . Largest Inventory Capacity 15 | 5 15 15 Average Capacity 11 | 5 10 14 Most Carried 14 | 4 9 14 Average Carried 7 | 1 6 9 Final Capacity 15 | 5 15 5 Final Carried 6 | 1 6 5 Class Distribution -------------------- 85% | Mutant 14% | Scavenger-Mutant Dominant Class ---------------- Mutant | -10/Materials Scavenger-Mutant | -9/Materials Resources | -11 -10 -9 ----------- Run | Yrd Mat Mat Matter Collected 902 | 240 371 291 Remotely 166 | . . 166 Salvage Created 884 | . 457 427 Parts 58 | . 30 28 Haulers Intercepted . | . . . Recyclers Shooed 2 | . . 2 Parts Field Recycled . | . . . Retrieved Matter . | . . . Parts Self-Destructed . | . . . Prevented . | . . . Kills | -11 -10 -9 ------- Run | Yrd Mat Mat Combat Hostiles Destroyed 22 | . 13 9 Guns 14 | . 8 6 Cannons 4 | . 1 3 AOE 4 | . 4 . Classes Destroyed 8 | . 5 3 Worker 3 | . . 3 Builder 1 | . 1 . Tunneler 1 | . 1 . Recycler 1 | . . 1 Watcher 2 | . 1 1 Swarmer 2 | . 2 . Grunt 19 | . 11 8 Duelist 1 | . . 1 Best Kill Streak 6 | . 5 6 Combat Bots Only 5 | . 3 5 Max Kills in Single Turn 3 | . 2 3 Gunslinging 1 | . . 1 Exploded 1 | . 1 . Melee . | . . . Uniques/NPCs Destroyed . | . . . Combat | -11 -10 -9 -------- Run | Yrd Mat Mat Hostile Shots Fired 307 | . 167 140 Missed 83 | . 47 36 Damage Taken 2929 | . 1328 1601 Core 685 | . 202 483 Absorbed by Shields . | . . . Core Remaining (%) 59 | 100 19 . Volleys Fired 120 | . 76 44 Largest 2 | . 2 2 Hottest 130 | . 120 130 Shots Fired 167 | . 98 69 Gun 126 | . 84 42 Cannon 31 | . 4 27 Launcher 10 | . 10 . Special . | . . . Kinetic 72 | . 72 . Thermal 85 | . 16 69 Explosive 10 | . 10 . Electromagnetic . | . . . Robot Hit Streak 15 | . 10 15 Robot Miss Streak 12 | . 4 12 Penetration Max . | . . . Secondary Targets 4 | . 1 3 Max Gunslinging Chain 1 | . 1 1 Shots Hit Robots 106 | . 53 53 Core Hits 84 | . 28 56 Critical Kills . | . . . Critical Parts Destroyed . | . . . Critical Strikes . | . . . Melee Attacks 8 | . 8 . Impact . | . . . Slashing . | . . . Piercing . | . . . Sneak Attacks . | . . . Combat Hostiles . | . . . Follow-up Attacks . | . . . Damage Inflicted 1859 | . 1045 814 Guns 1021 | . 540 481 Cannons 387 | . 54 333 Explosions 442 | . 442 . Melee . | . . . Ramming 9 | . 9 . Kinetic 453 | . 453 . Thermal 955 | . 141 814 Explosive 442 | . 442 . Electromagnetic . | . . . Impact . | . . . Slashing . | . . . Piercing . | . . . Highest Corruption . | . . . Average Corruption . | . . . Corruption Purged . | . . . Corruption Blocked . | . . . Overload Shots . | . . . Overflow Damage 13 | . 13 . Projectiles . | . . . Explosions 13 | . 13 . Melee . | . . . Knockbacks . | . . . Impact . | . . . Kinetic . | . . . Secondary . | . . . Self-Inflicted Damage 43 | . 43 . Shots 1 | . 1 . Rammed 1 | . 1 . Targets Rammed 1 | . 1 . Kicked . | . . . Crushed . | . . . Highest Temperature 788 | . 168 788 Average Temperature 153 | . 25 230 Received Heat Transfer 1215 | . 576 639 Effects 29 | . . 29 Shutdowns 2 | . . 2 Energy Bleed 3 | . . 3 Interference 2 | . . 2 Matter Decay 3 | . . 3 Short Circuit 1 | . . 1 Damage (minor) 1 | . . 1 Damage (major) 13 | . . 13 Damage (core) 4 | . . 4 Siege Activations . | . . . Robots Corrupted . | . . . Combat Hostiles . | . . . Parts Fried . | . . . Impact Corruptions . | . . . Robots Melted . | . . . Combat Hostiles . | . . . Parts Melted 1 | . . 1 Heat Transferred 1604 | . 311 1293 Parts Sabotaged . | . . . Parts Stolen . | . . . Parts Stripped . | . . . Power Chain Reactions . | . . . Alert | -11 -10 -9 ------- Run | Yrd Mat Mat Peak Influence 328 | . 328 318 Initial 103 | . . 103 Average 126 | . 118 165 Maximum Alert Level 1 | . 1 1 Low Security (%) 68 | 100 69 62 Level 1 31 | . 30 37 Level 2 . | . . . Level 3 . | . . . Level 4 . | . . . Level 5 . | . . . High Security . | . . . Max Security . | . . . Squads Dispatched 6 | . 4 2 Investigation 4 | . 3 1 Extermination . | . . . Reinforcement 2 | . 1 1 Assault . | . . . Garrison . | . . . Intercept . | . . . Searches Triggered . | . . . Construction Impeded . | . . . Haulers Reinforced . | . . . Active Scanning Responses . | . . . Cargo Convoy Interrupts . | . . . Stealth | -11 -10 -9 --------- Run | Yrd Mat Mat Distress Signals 2 | . 1 1 Communications Jammed . | . . . Distress Signals . | . . . Times Spotted 38 | . 19 19 Peak Tracking Total 9 | . 3 9 Tactical Retreats 1 | . 1 . Traps | -11 -10 -9 ------- Run | Yrd Mat Mat Traps Triggered 2 | . 2 . Indirectly . | . . . Trap Hack Attempts . | . . . Triggered . | . . . Disarmed . | . . . Reprogrammed . | . . . Reused . | . . . Traps Extracted . | . . . Installed . | . . . Triggered . | . . . Machines | -11 -10 -9 ---------- Run | Yrd Mat Mat Machines Disabled 1 | . 1 . Max in Single Turn 1 | . 1 . Machines Repaired . | . . . Machines Dismantled . | . . . Machines Sabotaged . | . . . Overloaded Fab Kills . | . . . Hacking | -11 -10 -9 --------- Run | Yrd Mat Mat Machines Accessed 10 | . 7 3 Terminals 6 | . 5 1 Fabricators . | . . . Repair Stations . | . . . Recycling Units 3 | . 2 1 Scanalyzers 1 | . . 1 Garrison Access . | . . . Total Hacks 34 | . 25 9 Successful 14 | . 8 6 Failed 20 | . 17 3 Catastrophic 2 | . 2 . Database Lockouts . | . . . Manual . | . . . Terminals 19 | . 16 3 Fabricators . | . . . Repair Stations . | . . . Recycling Units 10 | . 9 1 Scanalyzers 5 | . . 5 Garrison Access . | . . . Terminal Hacks 7 | . 6 1 Record 1 | . . 1 Prototype ID Bank 2 | . 2 . Alert Level 1 | . 1 . Unreport Threat 1 | . 1 . Locate Traps 1 | . 1 . Zone Layout 1 | . 1 . Fabricator Hacks . | . . . Repair Station Hacks . | . . . Recycling Unit Hacks 3 | . 2 1 Report Inventory 2 | . 2 . Retrieve Components 1 | . . 1 Scanalyzer 4 | . . 4 Insert Component 2 | . . 2 Analyze 2 | . . 2 Garrison Access Hacks . | . . . Unauthorized Hacks . | . . . Terminals . | . . . Fabricators . | . . . Repair Stations . | . . . Recycling Units . | . . . Scanalyzers . | . . . Garrison Access . | . . . Data Cores Recovered . | . . . Used . | . . . Hacking Detections 8 | . 6 2 Full Trace Events 5 | . 3 2 Feedback Events . | . . . Feedback Blocked . | . . . Robot Schematics Acquired . | . . . Robots Built . | . . . Authchips . | . . . Time . | . . . Total Robot Build Rating . | . . . Part Schematics Acquired 1 | . . 1 Parts Built . | . . . Authchips . | . . . Time . | . . . Total Part Build Rating . | . . . Parts Repaired . | . . . Time . | . . . Parts Recycled . | . . . Recycled Matter . | . . . Retrieved Matter . | . . . Retrieved Components 1 | . . 1 Parts Scanalyzed 2 | . . 2 Part Schematics Acquired 1 | . . 1 Parts Damaged . | . . . Bothacking | -11 -10 -9 ------------ Run | Yrd Mat Mat Used RIF Installer . | . . . Robots Hacked 1 | . 1 . Non-combat 1 | . 1 . Combat . | . . . Robot Hacks Applied 1 | . 1 . parse_system 1 | . 1 . Relay Couplers Released . | . . . Fabnet Peak Effective % . | . . . Robots Rewired . | . . . Allies Hacked . | . . . Hacks Repelled . | . . . Allies | -11 -10 -9 -------- Run | Yrd Mat Mat Total Allies . | . . . Largest Group . | . . . Highest-Rated Group . | . . . Highest-Rated Ally . | . . . Total Orders . | . . . Ally Attacks . | . . . Total Damage . | . . . Kills . | . . . Allies Corrupted . | . . . Allies Melted . | . . . Intel | -11 -10 -9 ------- Run | Yrd Mat Mat Robot Analysis Total . | . . . Derelict Logs Recovered . | . . . Drone Launches . | . . . Drone Recoveries . | . . . Exploration | -11 -10 -9 ------------- Run | Yrd Mat Mat Turns Passed 2090 | 70 1476 544 Spaces Moved 869 | 49 576 244 Core 35 | 21 12 2 Treads 256 | 28 228 . Legs 485 | . 243 242 Wheels 30 | . 30 . Hover . | . . . Flight 63 | . 63 . Fastest Speed 50 | 50 100 120 Average Speed 188 | 112 210 151 Slowest Speed 600 | 160 600 550 Overloaded Moves . | . . . Propulsion Burnouts . | . . . Robots Hopped . | . . . Cave-ins Triggered . | . . . Exploration Rate (%) 36 | 4 83 23 Regions Visited 2 Branch Regions . Pre-discovered Areas . | . . . Known Exits Taken . | . . . Unknown Exits Taken 2 | 1 1 . Scrap Searched . | . . . Spaces Dug . | . . . Terrain Destroyed 77 | . 77 . Melee . | . . . Projectile . | . . . AOE 77 | . 77 . Terrain Rammed . | . . . Walls Destroyed . | . . . Machines Disabled . | . . . Actions | -11 -10 -9 --------- Run | Yrd Mat Mat Total 1159 | 64 748 347 Wait 62 | 7 25 30 Move 867 | 48 575 244 Hop . | . . . Pick Up 44 | 5 24 15 Fast Attach 3 | . 3 . Attach 27 | 4 14 9 Detach 2 | . 1 1 Swap 11 | . 8 3 Drop 14 | . 13 1 Fire 120 | . 76 44 Melee 8 | . 8 . Ram 1 | . 1 . Kick . | . . . Crush . | . . . Escape Stasis . | . . . Rewire . | . . . Trap . | . . . Miscellaneous . | . . . Route ------- -11/Scrapyard -10/Materials (discovered 5 exits: *Mat x3 / [*Min x2]) -9/Materials (discovered 1 exit: [*Min]) History --------- Turn | Location | Event 13 | -11/Scrapyard | Discovered new exit (range 14) 71 | -11/Scrapyard | Entered Materials 305 | -10/Materials | Build established: Mutant 428 | -10/Materials | Discovered new exit (range 4) 431 | -10/Materials | Discovered new exit (range 12) 515 | -10/Materials | Discovered new exit (range 16) 671 | -10/Materials | Derelicts attacked the area 954 | -10/Materials | Core integrity fell below 50% 1153 | -10/Materials | Discovered new exit (range 12) 1450 | -10/Materials | Core integrity fell below 20% 1474 | -10/Materials | Lost 3 parts (1p1n1w) 1513 | -10/Materials | Discovered new exit (range 8) 1547 | -10/Materials | Entered another Materials area 1547 | -9/Materials | Evolved 2 slots: Propulsion x2 1745 | -9/Materials | Core integrity fell below 50% 1758 | -9/Materials | Core integrity fell below 20% 1766 | -9/Materials | Lost 4 parts (1n1u2w) 2017 | -9/Materials | Discovered new exit (range 12) 2060 | -9/Materials | Build established: Scavenger-Mutant 2091 | -9/Materials | Destroyed by S-10 Pest via exploding Fusion Modulator Last Messages --------------- 02017_ EXIT=FOUND 02018_ K-01 Serf cleans the Fusion Modulator. 02065_ W-16 Scout sends out distress signal. 02073_ C-30 ARC bursts open, deploying its payload. 02073_ S-10 Pest unfolds itself. 02075_ Critical hit (Burn: +37). 02076_ Spread Laser destroyed. 02077_ W-16 Scout destroyed. 02081_ Aluminum Leg destroyed. 02081_ Lrg. Storage Unit destroyed. 02082_ Lgt. Nuclear Core destroyed. 02084_ Aluminum Leg destroyed. 02085_ S-10 Pest destroyed. 02087_ Imp. Heat Sink destroyed. 02087_ Critical hit (Burn: +37). 02088_ Aluminum Leg destroyed. 02091_ Fusion Modulator explodes. 02091_ Aluminum Leg destroyed. Map ----- +----------------------------------------------------+ | ????????????????????????????????? #????????????? | | ??????????????????????????????? ????????????? | | ???????????????????????????????" #???????????? | | ???????????????????????????????! #???????????? | | ???????????????????????????????" < #???????????? | | ???????????????????????????????? #??????? #### | | ???????????????????????????????? ??????? | | ???????????????????????????????? ??????????# | | ???????????????????############## #??????????# | | ???????????????????# # #??????????# | | ???????????????????# # #??????????# | | ???????????????????# # ############ | | ???????????????????# # # + | | ?????????????#?????# # # [ # | | ????????????? ############/## # # % | | ????????????? + + | | ?????????????? ! # ####### | | ????????????? ? """ """ # #?????? | | ????????????? * """ """ ####### #########?????? | | ?????????????# """ """ #?????# #?????????????? | | ?????????????# #######+##????????????? | | ?????????????# # #????????????? | | ?????????????# """ # """ ""#????????????? | | ?????????????? ? """ = # """ T"#????????????? | | ?????????????# """ !#r """ ""#????????????? | | ?????????????# s @[Y #????????????? | | ?????????????# s % !=*# """ #????????????? | | ?????????????# %Y [ # """ #????????????? | | ?????????????# ###"Y"##### """ #????????????? | | ????????????# ????#"""???????? #????????????? | | ???????????????????###??????????# ###????????????? | | ????????????????????????????????##???????????????? | | ?????????????????????????????????????????????????? | | ?????????????????????????????????????????????????? | | ?????????????????????????????????????????????????? | | ?????????????????????????????????????????????????? | | ?????????????????????????????????????????????????? | | ?????????????????????????????????????????????????? | | ?????????????????????????????????????????????????? | | ?????????????????????????????????????????????????? | | ?????????????????????????????????????????????????? | | ?????????????????????????????????????????????????? | | ?????????????????????????????????????????????????? | | ?????????????????????????????????????????????????? | | ?????????????????????????????????????????????????? | | ?????????????????????????????????????????????????? | | ?????????????????????????????????????????????????? | | ?????????????????????????????????????????????????? | | ?????????????????????????????????????????????????? | | ?????????????????????????????????????????????????? | +----------------------------------------------------+ Best States ------------- Heat Dissipation 42 Energy Generation 14 Energy Capacity 250 Matter Stores 300 Matter Capacity 300 Sight Range 16 Terrain Scan Density 10 Armor Coverage 150 Evasion (%) 55 Recoil Reduction 2 Item Schematics ----------------- Lgt. Nuclear Core | -9/Materials | Scanalyzed Robot Schematics ------------------ None Fabricated ------------ Nothing Alien Tech Used ----------------- None Achievements -------------- Use The Force Challenges ------------ None Game ------ Seed WarpFusionCapacitor Manual? 0 Play Time 00:31:41 Cumulative 6.9 hours Start 2024.04.28 @ 18:45:54 End 2024.04.28 @ 19:19:49 Sessions 1 Manual Loads 0 Difficulty Rogue Special Mode None Game No. 14 Rogue 14 Adventurer 0 Explorer 0 Win Type - Total 0 Types 0/0/0/0/0/0/0/0/0 Lore% 2 Gallery% 8 Achievement% 7 Wizard Run 0 Options --------- Layout 1 ASCII 0 Keyboard 0 Movement Mouse Keybinds 0 Fullscreen 2 Font 32/SmallcapsGlow Map View 50x35 Zoom Use 0% Tactical HUD 1 Map Filters NONE Filters NONE Steam 1 RUN: 376550ce-b432-4ffc-826e-9fc16a40c01a